[Event "Titled Tuesday Blitz June 13 Early 2023"]
[White "Srihari L R"]
[Black "Gorovets, Andrey"]
[WhiteFideId "46617116"]
[BlackFideId "13504037"]
[WhiteElo "2334"]
[BlackElo "2459"]
[Result "0-1"]
[Round "7"]
[TimeControl "180+2"]
[Date "2023.06.13"]
[WhiteClock "0:00:05"]
[BlackClock "0:00:03"]
[Board "26"]

1. d4 {[%clk 0:03:00]}  Nf6 {[%clk 0:02:59]} 2. Bg5 {[%clk 0:02:56]}  d5 {[%clk 0:02:58]} 3. Nd2 {[%clk 0:02:56]}  c5 {[%clk 0:02:56]} 4. e3 {[%clk 0:02:55]}  cxd4 {[%clk 0:02:56]} 5. exd4 {[%clk 0:02:55]}  Nc6 {[%clk 0:02:57]} 6. Ngf3 {[%clk 0:02:54]}  Bg4 {[%clk 0:02:57]} 7. c3 {[%clk 0:02:54]}  Qc7 {[%clk 0:02:54]} 8. Be2 {[%clk 0:02:53]}  e6 {[%clk 0:02:53]} 9. Bh4 {[%clk 0:02:52]}  Bd6 {[%clk 0:02:51]} 10. Bg3 {[%clk 0:02:52]}  O-O-O {[%clk 0:02:40]} 11. O-O {[%clk 0:02:44]}  Bxg3 {[%clk 0:02:38]} 12. fxg3 {[%clk 0:02:33]}  h5 {[%clk 0:02:38]} 13. Qe1 {[%clk 0:02:01]}  Kb8 {[%clk 0:02:26]} 14. Kh1 {[%clk 0:02:00]}  h4 {[%clk 0:02:08]} 15. Nxh4 {[%clk 0:01:54]}  Bxe2 {[%clk 0:02:04]} 16. Qxe2 {[%clk 0:01:54]}  Ne8 {[%clk 0:02:00]} 17. Qf2 {[%clk 0:01:37]}  Nd6 {[%clk 0:01:56]} 18. Rae1 {[%clk 0:01:29]}  Rdg8 {[%clk 0:01:43]} 19. Kg1 {[%clk 0:01:26]}  g5 {[%clk 0:01:38]} 20. Nhf3 {[%clk 0:01:25]}  g4 {[%clk 0:01:37]} 21. Ne5 {[%clk 0:01:23]}  Nxe5 {[%clk 0:01:32]} 22. dxe5 {[%clk 0:01:12]}  Nf5 {[%clk 0:01:31]} 23. Nb3 {[%clk 0:01:12]}  Rh5 {[%clk 0:01:25]} 24. Nd4 {[%clk 0:01:08]}  Rgh8 {[%clk 0:01:13]} 25. Nxf5 {[%clk 0:01:07]}  exf5 {[%clk 0:01:07]} 26. e6 {[%clk 0:00:40]}  Rxh2 {[%clk 0:00:45]} 27. Qe3 {[%clk 0:00:29]}  fxe6 {[%clk 0:00:36]} 28. Rf4 {[%clk 0:00:27]}  Rh1+ {[%clk 0:00:29]} 29. Kf2 {[%clk 0:00:27]}  Rxe1 {[%clk 0:00:29]} 30. Kxe1 {[%clk 0:00:23]}  Rh1+ {[%clk 0:00:22]} 31. Kf2 {[%clk 0:00:20]}  Qb6 {[%clk 0:00:11]} 32. Rd4 {[%clk 0:00:13]}  Qxb2+ {[%clk 0:00:08]} 33. Rd2 {[%clk 0:00:14]}  Qb6 {[%clk 0:00:08]} 34. Rd4 {[%clk 0:00:13]}  a6 {[%clk 0:00:07]} 35. c4 {[%clk 0:00:04]}  Ka7 {[%clk 0:00:04]} 36. cxd5 {[%clk 0:00:04]}  e5 {[%clk 0:00:04]} 37. Rd2 {[%clk 0:00:04]}  Rf1+ {[%clk 0:00:02]} 38. Kxf1 {[%clk 0:00:04]}  Qxe3 {[%clk 0:00:03]} 39. Rd1 {[%clk 0:00:05]}  f4 {[%clk 0:00:02]} 40. gxf4 {[%clk 0:00:05]}  exf4 {[%clk 0:00:02]} 41. d6 {[%clk 0:00:05]}  g3 {[%clk 0:00:03]} 42. d7 {[%clk 0:00:05]}  Qf2# {[%clk 0:00:03]} 0-1


[Site "https://www.chess.com"]

[Event "Titled Tuesday Blitz June 13 Early 2023"]
[White "Kucuksari, Kaan"]
[Black "Matlakov, Maxim"]
[WhiteFideId "6380166"]
[BlackFideId "4168003"]
[WhiteElo "2364"]
[BlackElo "2666"]
[Result "0-1"]
[Round "7"]
[TimeControl "180+2"]
[Date "2023.06.13"]
[WhiteClock "0:00:00"]
[BlackClock "0:00:04"]
[Board "34"]

1. d4 {[%clk 0:03:00]}  d5 {[%clk 0:02:39]} 2. Nf3 {[%clk 0:03:01]}  Bf5 {[%clk 0:02:35]} 3. c4 {[%clk 0:02:59]}  e6 {[%clk 0:02:20]} 4. Nc3 {[%clk 0:02:59]}  Nf6 {[%clk 0:02:19]} 5. Qb3 {[%clk 0:02:56]}  Nc6 {[%clk 0:02:07]} 6. Bg5 {[%clk 0:02:23]}  Na5 {[%clk 0:02:01]} 7. Qa4+ {[%clk 0:02:23]}  c6 {[%clk 0:02:01]} 8. Bxf6 {[%clk 0:02:10]}  gxf6 {[%clk 0:02:01]} 9. cxd5 {[%clk 0:02:10]}  exd5 {[%clk 0:02:02]} 10. e3 {[%clk 0:02:10]}  Bd6 {[%clk 0:01:57]} 11. Be2 {[%clk 0:01:21]}  b5 {[%clk 0:01:56]} 12. Qd1 {[%clk 0:01:20]}  Nc4 {[%clk 0:01:56]} 13. Bxc4 {[%clk 0:01:17]}  dxc4 {[%clk 0:01:54]} 14. Nh4 {[%clk 0:01:01]}  Bd3 {[%clk 0:01:53]} 15. Qf3 {[%clk 0:01:00]}  Rc8 {[%clk 0:01:38]} 16. Nf5 {[%clk 0:00:57]}  Bb4 {[%clk 0:01:31]} 17. a3 {[%clk 0:00:32]}  Ba5 {[%clk 0:01:24]} 18. O-O-O {[%clk 0:00:18]}  Bxc3 {[%clk 0:00:55]} 19. bxc3 {[%clk 0:00:18]}  a5 {[%clk 0:00:55]} 20. Kd2 {[%clk 0:00:08]}  h5 {[%clk 0:00:43]} 21. e4 {[%clk 0:00:06]}  Kf8 {[%clk 0:00:43]} 22. Qf4 {[%clk 0:00:05]}  Ra8 {[%clk 0:00:31]} 23. g4 {[%clk 0:00:05]}  b4 {[%clk 0:00:28]} 24. gxh5 {[%clk 0:00:05]}  bxc3+ {[%clk 0:00:12]} 25. Ke3 {[%clk 0:00:05]}  Qb8 {[%clk 0:00:12]} 26. Nd6 {[%clk 0:00:03]}  Ke7 {[%clk 0:00:10]} 27. Nf5+ {[%clk 0:00:03]}  Kf8 {[%clk 0:00:10]} 28. Qg4 {[%clk 0:00:02]}  Rg8 {[%clk 0:00:09]} 29. Qh4 {[%clk 0:00:02]}  Qb2 {[%clk 0:00:08]} 30. Rde1 {[%clk 0:00:02]}  Qd2+ {[%clk 0:00:08]} 31. Kf3 {[%clk 0:00:02]}  Rg5 {[%clk 0:00:05]} 32. h6 {[%clk 0:00:02]}  Kg8 {[%clk 0:00:04]} 33. Rhg1 {[%clk 0:00:02]}  Kh8 {[%clk 0:00:04]} 34. Rxg5 {[%clk 0:00:02]}  Qxg5 {[%clk 0:00:04]} 35. Qxg5 {[%clk 0:00:02]}  fxg5 {[%clk 0:00:05]} 36. e5 {[%clk 0:00:02]}  Bxf5 {[%clk 0:00:04]} 37. Rc1 {[%clk 0:00:00]}  c2 {[%clk 0:00:04]} 0-1


[Site "https://www.chess.com"]

[Event "Titled Tuesday Blitz June 13 Early 2023"]
[White "Bharath Subramaniyam H"]
[Black "Sadykov, Ramil"]
[WhiteFideId "46634827"]
[BlackFideId "24113590"]
[WhiteElo "2400"]
[BlackElo "2245"]
[Result "1-0"]
[Round "7"]
[TimeControl "180+2"]
[Date "2023.06.13"]
[WhiteClock "0:01:05"]
[BlackClock "0:00:01"]
[Board "37"]

1. b3 {[%clk 0:03:00]}  c5 {[%clk 0:02:54]} 2. Bb2 {[%clk 0:03:00]}  Nc6 {[%clk 0:02:53]} 3. Nf3 {[%clk 0:03:00]}  Nf6 {[%clk 0:02:52]} 4. e3 {[%clk 0:02:58]}  d5 {[%clk 0:02:48]} 5. Bb5 {[%clk 0:02:56]}  Bd7 {[%clk 0:02:46]} 6. c4 {[%clk 0:02:56]}  a6 {[%clk 0:02:41]} 7. Bxc6 {[%clk 0:02:56]}  Bxc6 {[%clk 0:02:42]} 8. Ne5 {[%clk 0:02:57]}  Rc8 {[%clk 0:02:39]} 9. O-O {[%clk 0:02:55]}  e6 {[%clk 0:02:20]} 10. d3 {[%clk 0:02:54]}  Be7 {[%clk 0:02:15]} 11. Nd2 {[%clk 0:02:53]}  O-O {[%clk 0:02:14]} 12. Qe2 {[%clk 0:02:50]}  b6 {[%clk 0:01:50]} 13. Nxc6 {[%clk 0:02:49]}  Rxc6 {[%clk 0:01:50]} 14. Rad1 {[%clk 0:02:47]}  Qd7 {[%clk 0:01:42]} 15. f4 {[%clk 0:02:46]}  Rd8 {[%clk 0:01:39]} 16. Nf3 {[%clk 0:02:46]}  Rcc8 {[%clk 0:01:35]} 17. Ne5 {[%clk 0:02:43]}  Qb7 {[%clk 0:01:23]} 18. g4 {[%clk 0:02:42]}  Nd7 {[%clk 0:01:22]} 19. Nf3 {[%clk 0:02:36]}  b5 {[%clk 0:01:14]} 20. cxd5 {[%clk 0:02:30]}  Qxd5 {[%clk 0:01:10]} 21. e4 {[%clk 0:02:25]}  Qc6 {[%clk 0:01:06]} 22. Rc1 {[%clk 0:02:14]}  Qb6 {[%clk 0:01:05]} 23. Kg2 {[%clk 0:02:11]}  Nb8 {[%clk 0:01:00]} 24. f5 {[%clk 0:02:06]}  Nd7 {[%clk 0:00:52]} 25. Qe3 {[%clk 0:01:55]}  f6 {[%clk 0:00:48]} 26. h4 {[%clk 0:01:50]}  Qd6 {[%clk 0:00:40]} 27. g5 {[%clk 0:01:42]}  exf5 {[%clk 0:00:27]} 28. exf5 {[%clk 0:01:43]}  Bf8 {[%clk 0:00:25]} 29. Qe6+ {[%clk 0:01:36]}  Kh8 {[%clk 0:00:14]} 30. h5 {[%clk 0:01:31]}  Re8 {[%clk 0:00:14]} 31. Qxd6 {[%clk 0:01:28]}  Bxd6 {[%clk 0:00:15]} 32. h6 {[%clk 0:01:28]}  Re2+ {[%clk 0:00:13]} 33. Rf2 {[%clk 0:01:27]}  Rce8 {[%clk 0:00:13]} 34. Rg1 {[%clk 0:01:08]}  Kg8 {[%clk 0:00:11]} 35. gxf6 {[%clk 0:01:05]}  Rxf2+ {[%clk 0:00:03]} 36. Kxf2 {[%clk 0:01:04]}  g6 {[%clk 0:00:04]} 37. fxg6 {[%clk 0:01:04]}  hxg6 {[%clk 0:00:04]} 38. Rxg6+ {[%clk 0:01:04]}  Kf7 {[%clk 0:00:02]} 39. Rg7+ {[%clk 0:01:04]}  Ke6 {[%clk 0:00:03]} 40. Ng5+ {[%clk 0:01:05]}  Kf5 {[%clk 0:00:01]} 41. Rxd7 {[%clk 0:01:05]} 1-0


[Site "https://www.chess.com"]

[Event "Titled Tuesday Blitz June 13 Early 2023"]
[White "Talibov, Shiroghlan"]
[Black "Veiga, Jose Francisco R P Neves"]
[WhiteFideId "13429078"]
[BlackFideId "1930087"]
[WhiteElo "2274"]
[BlackElo "2319"]
[Result "1-0"]
[Round "7"]
[TimeControl "180+2"]
[Date "2023.06.13"]
[WhiteClock "0:00:06"]
[BlackClock "0:00:06"]
[Board "38"]

1. d4 {[%clk 0:03:00]}  Nf6 {[%clk 0:02:48]} 2. c4 {[%clk 0:02:59]}  e6 {[%clk 0:02:48]} 3. Nf3 {[%clk 0:02:57]}  d5 {[%clk 0:02:48]} 4. Bg5 {[%clk 0:02:53]}  Be7 {[%clk 0:02:47]} 5. e3 {[%clk 0:02:50]}  O-O {[%clk 0:02:46]} 6. Nc3 {[%clk 0:02:49]}  h6 {[%clk 0:02:44]} 7. Bxf6 {[%clk 0:02:45]}  Bxf6 {[%clk 0:02:45]} 8. Qc2 {[%clk 0:02:45]}  c5 {[%clk 0:02:31]} 9. dxc5 {[%clk 0:02:43]}  Qa5 {[%clk 0:02:31]} 10. cxd5 {[%clk 0:02:38]}  exd5 {[%clk 0:02:31]} 11. Bd3 {[%clk 0:02:37]}  Nc6 {[%clk 0:02:27]} 12. O-O {[%clk 0:02:31]}  Qxc5 {[%clk 0:02:21]} 13. a3 {[%clk 0:02:29]}  Bg4 {[%clk 0:02:16]} 14. Ne4 {[%clk 0:02:13]}  Qe7 {[%clk 0:02:14]} 15. Nxf6+ {[%clk 0:02:09]}  Qxf6 {[%clk 0:02:14]} 16. Nd2 {[%clk 0:02:07]}  d4 {[%clk 0:02:10]} 17. e4 {[%clk 0:02:06]}  Rac8 {[%clk 0:02:08]} 18. f4 {[%clk 0:02:01]}  Nb4 {[%clk 0:01:34]} 19. Qb3 {[%clk 0:01:59]}  Nxd3 {[%clk 0:01:34]} 20. Qxd3 {[%clk 0:02:00]}  Qb6 {[%clk 0:01:35]} 21. Nc4 {[%clk 0:01:51]}  Qb5 {[%clk 0:01:30]} 22. b3 {[%clk 0:01:45]}  Be6 {[%clk 0:01:30]} 23. Rfc1 {[%clk 0:01:45]}  Rc6 {[%clk 0:01:17]} 24. Rc2 {[%clk 0:01:16]}  Rfc8 {[%clk 0:01:15]} 25. Rac1 {[%clk 0:01:15]}  Bxc4 {[%clk 0:01:09]} 26. Rxc4 {[%clk 0:01:09]}  Rxc4 {[%clk 0:01:09]} 27. Rxc4 {[%clk 0:01:10]}  Rxc4 {[%clk 0:01:09]} 28. Qxc4 {[%clk 0:01:11]}  Qb6 {[%clk 0:01:05]} 29. Kf1 {[%clk 0:01:04]}  Qf6 {[%clk 0:00:59]} 30. Qc8+ {[%clk 0:00:57]}  Kh7 {[%clk 0:00:59]} 31. Qf5+ {[%clk 0:00:58]}  Qxf5 {[%clk 0:00:59]} 32. exf5 {[%clk 0:00:59]}  g6 {[%clk 0:00:50]} 33. f6 {[%clk 0:00:57]}  g5 {[%clk 0:00:22]} 34. f5 {[%clk 0:00:39]}  g4 {[%clk 0:00:22]} 35. h4 {[%clk 0:00:33]}  gxh3 {[%clk 0:00:18]} 36. gxh3 {[%clk 0:00:34]}  h5 {[%clk 0:00:17]} 37. h4 {[%clk 0:00:34]}  Kg8 {[%clk 0:00:17]} 38. Ke2 {[%clk 0:00:35]}  Kf8 {[%clk 0:00:17]} 39. Kd3 {[%clk 0:00:35]}  Ke8 {[%clk 0:00:18]} 40. Kxd4 {[%clk 0:00:36]}  Kd8 {[%clk 0:00:17]} 41. Ke5 {[%clk 0:00:35]}  Kd7 {[%clk 0:00:17]} 42. Kd5 {[%clk 0:00:30]}  b6 {[%clk 0:00:16]} 43. a4 {[%clk 0:00:23]}  a5 {[%clk 0:00:15]} 44. Ke4 {[%clk 0:00:18]}  Kd6 {[%clk 0:00:15]} 45. Kd4 {[%clk 0:00:15]}  Kd7 {[%clk 0:00:13]} 46. Kd5 {[%clk 0:00:14]}  Kc7 {[%clk 0:00:12]} 47. Ke5 {[%clk 0:00:14]}  Kd7 {[%clk 0:00:11]} 48. Kf4 {[%clk 0:00:14]}  Kd6 {[%clk 0:00:08]} 49. Kg5 {[%clk 0:00:15]}  Ke5 {[%clk 0:00:08]} 50. Kxh5 {[%clk 0:00:08]}  Kxf5 {[%clk 0:00:08]} 51. Kh6 {[%clk 0:00:08]}  Kxf6 {[%clk 0:00:09]} 52. h5 {[%clk 0:00:09]}  Ke6 {[%clk 0:00:01]} 53. Kg7 {[%clk 0:00:05]}  f5 {[%clk 0:00:01]} 54. h6 {[%clk 0:00:06]}  f4 {[%clk 0:00:02]} 55. h7 {[%clk 0:00:07]}  f3 {[%clk 0:00:03]} 56. h8=Q {[%clk 0:00:07]}  Ke5 {[%clk 0:00:03]} 57. Qe8+ {[%clk 0:00:08]}  Kf4 {[%clk 0:00:04]} 58. Qf7+ {[%clk 0:00:08]}  Kg3 {[%clk 0:00:05]} 59. Qg6+ {[%clk 0:00:07]}  Kf2 {[%clk 0:00:05]} 60. Qxb6+ {[%clk 0:00:07]}  Kg2 {[%clk 0:00:06]} 61. Qg6+ {[%clk 0:00:06]}  Kf1 {[%clk 0:00:06]} 62. Qd3+ {[%clk 0:00:06]}  Kg1 {[%clk 0:00:06]} 63. Qxf3 {[%clk 0:00:06]} 1-0


[Site "https://www.chess.com"]

[Event "Titled Tuesday Blitz June 13 Early 2023"]
[White "Agibileg, Uurtsaikh"]
[Black "Vignesh N R"]
[WhiteFideId "4901606"]
[BlackFideId "25012215"]
[WhiteElo "2353"]
[BlackElo "2415"]
[Result "1-0"]
[Round "7"]
[TimeControl "180+2"]
[Date "2023.06.13"]
[WhiteClock "0:02:26"]
[BlackClock "0:00:25"]
[Board "39"]

1. d4 {[%clk 0:03:00]}  Nf6 {[%clk 0:02:59]} 2. c4 {[%clk 0:03:00]}  e6 {[%clk 0:03:00]} 3. Nc3 {[%clk 0:03:00]}  Bb4 {[%clk 0:02:59]} 4. f3 {[%clk 0:03:00]}  c5 {[%clk 0:02:57]} 5. a3 {[%clk 0:02:58]}  Bxc3+ {[%clk 0:02:55]} 6. bxc3 {[%clk 0:02:59]}  O-O {[%clk 0:02:32]} 7. e4 {[%clk 0:02:58]}  d6 {[%clk 0:02:30]} 8. Bd3 {[%clk 0:02:58]}  Nc6 {[%clk 0:02:30]} 9. Ne2 {[%clk 0:02:58]}  e5 {[%clk 0:01:59]} 10. O-O {[%clk 0:02:56]}  Re8 {[%clk 0:01:56]} 11. Bg5 {[%clk 0:02:54]}  h6 {[%clk 0:01:56]} 12. Bh4 {[%clk 0:02:54]}  g5 {[%clk 0:01:57]} 13. Bf2 {[%clk 0:02:53]}  b6 {[%clk 0:01:56]} 14. f4 {[%clk 0:02:48]}  exf4 {[%clk 0:01:50]} 15. Nxf4 {[%clk 0:02:48]}  Nxe4 {[%clk 0:01:26]} 16. Nd5 {[%clk 0:02:47]}  Nf6 {[%clk 0:01:17]} 17. Bg3 {[%clk 0:02:38]}  Re6 {[%clk 0:00:35]} 18. Qf3 {[%clk 0:02:32]}  Kg7 {[%clk 0:00:25]} 19. Nxf6 {[%clk 0:02:26]} 1-0


[Site "https://www.chess.com"]

[Event "Titled Tuesday Blitz June 13 Early 2023"]
[White "Kashlinskaya, Alina"]
[Black "Kosakowski, Jakub"]
[WhiteFideId "4198026"]
[BlackFideId "1185080"]
[WhiteElo "2383"]
[BlackElo "2488"]
[Result "1-0"]
[Round "7"]
[TimeControl "180+2"]
[Date "2023.06.13"]
[WhiteClock "0:00:11"]
[BlackClock "0:00:02"]
[Board "40"]

1. Nf3 {[%clk 0:02:57]}  Nf6 {[%clk 0:02:38]} 2. g3 {[%clk 0:02:56]}  g6 {[%clk 0:02:36]} 3. Bg2 {[%clk 0:02:57]}  Bg7 {[%clk 0:02:37]} 4. O-O {[%clk 0:02:57]}  O-O {[%clk 0:02:38]} 5. c4 {[%clk 0:02:56]}  c6 {[%clk 0:02:38]} 6. d4 {[%clk 0:02:54]}  d5 {[%clk 0:02:38]} 7. Qb3 {[%clk 0:02:53]}  dxc4 {[%clk 0:02:35]} 8. Qxc4 {[%clk 0:02:54]}  Bf5 {[%clk 0:02:36]} 9. Nc3 {[%clk 0:02:53]}  Ne4 {[%clk 0:02:35]} 10. Nh4 {[%clk 0:02:49]}  Be6 {[%clk 0:02:33]} 11. Qd3 {[%clk 0:02:46]}  Nxc3 {[%clk 0:02:29]} 12. bxc3 {[%clk 0:02:47]}  Nd7 {[%clk 0:02:27]} 13. f4 {[%clk 0:02:41]}  Nb6 {[%clk 0:02:12]} 14. f5 {[%clk 0:02:40]}  Bc4 {[%clk 0:02:11]} 15. Qc2 {[%clk 0:02:36]}  e5 {[%clk 0:02:05]} 16. dxe5 {[%clk 0:02:28]}  Bxe5 {[%clk 0:02:04]} 17. Bh6 {[%clk 0:02:28]}  Re8 {[%clk 0:02:03]} 18. Rad1 {[%clk 0:02:29]}  Qc7 {[%clk 0:02:02]} 19. Rf2 {[%clk 0:02:06]}  Nd5 {[%clk 0:01:00]} 20. fxg6 {[%clk 0:01:46]}  fxg6 {[%clk 0:00:57]} 21. Qa4 {[%clk 0:01:34]}  b5 {[%clk 0:00:54]} 22. Qc2 {[%clk 0:01:34]}  Nxc3 {[%clk 0:00:47]} 23. Rdf1 {[%clk 0:01:30]}  Nxe2+ {[%clk 0:00:44]} 24. Kh1 {[%clk 0:01:29]}  Bxg3 {[%clk 0:00:25]} 25. Rf6 {[%clk 0:00:49]}  Bxh4 {[%clk 0:00:11]} 26. Rxg6+ {[%clk 0:00:49]}  hxg6 {[%clk 0:00:12]} 27. Qxg6+ {[%clk 0:00:50]}  Kh8 {[%clk 0:00:12]} 28. Bc1 {[%clk 0:00:28]}  Nd4 {[%clk 0:00:07]} 29. Bb2 {[%clk 0:00:20]}  c5 {[%clk 0:00:06]} 30. Qh5+ {[%clk 0:00:21]}  Qh7 {[%clk 0:00:06]} 31. Qxc5 {[%clk 0:00:21]}  Bxf1 {[%clk 0:00:04]} 32. Qxd4+ {[%clk 0:00:18]}  Kg8 {[%clk 0:00:03]} 33. Bd5+ {[%clk 0:00:19]}  Kf8 {[%clk 0:00:02]} 34. Qf4+ {[%clk 0:00:15]}  Ke7 {[%clk 0:00:02]} 35. Ba3+ {[%clk 0:00:15]}  Kd7 {[%clk 0:00:02]} 36. Qd6+ {[%clk 0:00:15]}  Kc8 {[%clk 0:00:02]} 37. Qc6+ {[%clk 0:00:14]}  Kd8 {[%clk 0:00:02]} 38. Qxa8+ {[%clk 0:00:13]}  Kd7 {[%clk 0:00:02]} 39. Qc6+ {[%clk 0:00:13]}  Kd8 {[%clk 0:00:02]} 40. Qa8+ {[%clk 0:00:14]}  Kd7 {[%clk 0:00:03]} 41. Qb7+ {[%clk 0:00:13]}  Kd8 {[%clk 0:00:03]} 42. Qxh7 {[%clk 0:00:13]}  Be7 {[%clk 0:00:02]} 43. Bxe7+ {[%clk 0:00:12]}  Rxe7 {[%clk 0:00:02]} 44. Qg8+ {[%clk 0:00:12]}  Kc7 {[%clk 0:00:02]} 45. Qg3+ {[%clk 0:00:11]}  Kd7 {[%clk 0:00:03]} 46. Qg4+ {[%clk 0:00:11]}  Kc7 {[%clk 0:00:03]} 47. Qf4+ {[%clk 0:00:10]}  Kd7 {[%clk 0:00:02]} 48. Qxf1 {[%clk 0:00:11]} 1-0


[Site "https://www.chess.com"]

[Event "Titled Tuesday Blitz June 13 Early 2023"]
[White "Stribuk, Artiom"]
[Black "Kvaloy, Aksel Bu"]
[WhiteFideId "13515659"]
[BlackFideId "1528815"]
[WhiteElo "2303"]
[BlackElo "2318"]
[Result "1-0"]
[Round "7"]
[TimeControl "180+2"]
[Date "2023.06.13"]
[WhiteClock "0:00:32"]
[BlackClock "0:00:42"]
[Board "44"]

1. d4 {[%clk 0:03:00]}  Nf6 {[%clk 0:02:57]} 2. c4 {[%clk 0:03:00]}  e6 {[%clk 0:02:58]} 3. g3 {[%clk 0:02:58]}  d5 {[%clk 0:02:54]} 4. Bg2 {[%clk 0:02:58]}  dxc4 {[%clk 0:02:55]} 5. Nf3 {[%clk 0:02:58]}  c6 {[%clk 0:02:53]} 6. Ne5 {[%clk 0:02:57]}  Bb4+ {[%clk 0:02:51]} 7. Nc3 {[%clk 0:02:57]}  Nd5 {[%clk 0:02:39]} 8. O-O {[%clk 0:02:57]}  Nxc3 {[%clk 0:02:38]} 9. bxc3 {[%clk 0:02:57]}  Bxc3 {[%clk 0:02:39]} 10. Ba3 {[%clk 0:02:51]}  Qxd4 {[%clk 0:02:38]} 11. Qxd4 {[%clk 0:02:47]}  Bxd4 {[%clk 0:02:39]} 12. Nxc4 {[%clk 0:02:48]}  Bxa1 {[%clk 0:02:39]} 13. Rxa1 {[%clk 0:02:43]}  f6 {[%clk 0:02:04]} 14. Nd6+ {[%clk 0:02:43]}  Kd7 {[%clk 0:02:04]} 15. Rd1 {[%clk 0:02:44]}  Kc7 {[%clk 0:02:02]} 16. Nf7 {[%clk 0:02:22]}  Rg8 {[%clk 0:01:56]} 17. Bd6+ {[%clk 0:02:21]}  Kb6 {[%clk 0:01:52]} 18. Rb1+ {[%clk 0:02:21]}  Ka6 {[%clk 0:01:50]} 19. Be4 {[%clk 0:01:59]}  e5 {[%clk 0:01:31]} 20. Bxh7 {[%clk 0:01:53]}  Re8 {[%clk 0:01:31]} 21. Bd3+ {[%clk 0:01:53]}  b5 {[%clk 0:01:30]} 22. a4 {[%clk 0:01:50]}  Bd7 {[%clk 0:01:24]} 23. Be4 {[%clk 0:01:19]}  Be6 {[%clk 0:01:01]} 24. axb5+ {[%clk 0:01:14]}  cxb5 {[%clk 0:01:02]} 25. Bc7 {[%clk 0:01:01]}  b4 {[%clk 0:00:52]} 26. Nd6 {[%clk 0:00:38]}  Nc6 {[%clk 0:00:42]} 27. Bd3+ {[%clk 0:00:32]} 1-0


[Site "https://www.chess.com"]

[Event "Titled Tuesday Blitz June 13 Early 2023"]
[White "Camilla_Lee"]
[Black "Maximov, Dmitry"]
[BlackFideId "14105659"]
[WhiteElo "2591"]
[BlackElo "2494"]
[Result "1/2-1/2"]
[Round "7"]
[TimeControl "180+2"]
[Date "2023.06.13"]
[WhiteClock "0:00:11"]
[BlackClock "0:00:15"]
[Board "48"]

1. e4 {[%clk 0:03:00]}  c5 {[%clk 0:02:59]} 2. Nf3 {[%clk 0:02:59]}  d6 {[%clk 0:02:59]} 3. d4 {[%clk 0:02:57]}  cxd4 {[%clk 0:02:59]} 4. Nxd4 {[%clk 0:02:58]}  Nf6 {[%clk 0:03:00]} 5. Nc3 {[%clk 0:02:57]}  a6 {[%clk 0:03:00]} 6. Bc4 {[%clk 0:02:55]}  Nbd7 {[%clk 0:02:59]} 7. f4 {[%clk 0:02:45]}  Qc7 {[%clk 0:02:57]} 8. Bb3 {[%clk 0:02:43]}  Nc5 {[%clk 0:02:57]} 9. Qf3 {[%clk 0:02:13]}  e6 {[%clk 0:02:57]} 10. O-O {[%clk 0:02:10]}  Be7 {[%clk 0:02:54]} 11. f5 {[%clk 0:02:07]}  e5 {[%clk 0:02:52]} 12. Nde2 {[%clk 0:02:07]}  Nxb3 {[%clk 0:02:44]} 13. axb3 {[%clk 0:02:06]}  h5 {[%clk 0:02:44]} 14. Bg5 {[%clk 0:02:03]}  Bd7 {[%clk 0:02:33]} 15. Bxf6 {[%clk 0:02:02]}  Bxf6 {[%clk 0:02:30]} 16. Nd5 {[%clk 0:02:01]}  Qd8 {[%clk 0:02:08]} 17. c4 {[%clk 0:01:47]}  Bg5 {[%clk 0:02:06]} 18. Nec3 {[%clk 0:01:28]}  Rc8 {[%clk 0:02:05]} 19. Rad1 {[%clk 0:01:24]}  Rh6 {[%clk 0:02:03]} 20. Qf2 {[%clk 0:01:15]}  h4 {[%clk 0:02:02]} 21. h3 {[%clk 0:01:15]}  Kf8 {[%clk 0:01:55]} 22. Rd3 {[%clk 0:01:06]}  Kg8 {[%clk 0:01:54]} 23. Rfd1 {[%clk 0:01:06]}  Bc6 {[%clk 0:01:45]} 24. Nb6 {[%clk 0:00:50]}  Rb8 {[%clk 0:01:46]} 25. c5 {[%clk 0:00:46]}  Be7 {[%clk 0:01:46]} 26. Ncd5 {[%clk 0:00:42]}  Bf8 {[%clk 0:01:28]} 27. f6 {[%clk 0:00:26]}  Bxd5 {[%clk 0:00:55]} 28. Nxd5 {[%clk 0:00:21]}  gxf6 {[%clk 0:00:50]} 29. Ne3 {[%clk 0:00:22]}  Rg6 {[%clk 0:00:46]} 30. cxd6 {[%clk 0:00:20]}  Qd7 {[%clk 0:00:47]} 31. Nf5 {[%clk 0:00:20]}  Rc8 {[%clk 0:00:45]} 32. Qxh4 {[%clk 0:00:20]}  Rc2 {[%clk 0:00:44]} 33. Rg3 {[%clk 0:00:20]}  Rxb2 {[%clk 0:00:39]} 34. Qxf6 {[%clk 0:00:19]}  Rxg3 {[%clk 0:00:33]} 35. Nxg3 {[%clk 0:00:20]}  Bg7 {[%clk 0:00:31]} 36. Qe7 {[%clk 0:00:18]}  Qc6 {[%clk 0:00:18]} 37. d7 {[%clk 0:00:17]}  Rxg2+ {[%clk 0:00:18]} 38. Kxg2 {[%clk 0:00:13]}  Qc2+ {[%clk 0:00:19]} 39. Ne2 {[%clk 0:00:12]}  Qxe2+ {[%clk 0:00:18]} 40. Kg3 {[%clk 0:00:12]}  Qe3+ {[%clk 0:00:17]} 41. Kg2 {[%clk 0:00:10]}  Qe2+ {[%clk 0:00:15]} 42. Kg3 {[%clk 0:00:10]}  Qe3+ {[%clk 0:00:15]} 43. Kg2 {[%clk 0:00:11]}  Qe2+ {[%clk 0:00:15]} 1/2-1/2


[Site "https://www.chess.com"]

[Event "Titled Tuesday Blitz June 13 Early 2023"]
[White "Deng, Henry"]
[Black "Priasmoro, Novendra"]
[WhiteFideId "30965454"]
[BlackFideId "7105029"]
[WhiteElo "2581"]
[BlackElo "2412"]
[Result "0-1"]
[Round "7"]
[TimeControl "180+2"]
[Date "2023.06.13"]
[WhiteClock "0:01:00"]
[BlackClock "0:01:15"]
[Board "49"]

1. e4 {[%clk 0:02:56]}  c5 {[%clk 0:02:58]} 2. Nc3 {[%clk 0:02:56]}  Nc6 {[%clk 0:02:59]} 3. Bb5 {[%clk 0:02:56]}  Nd4 {[%clk 0:02:58]} 4. Nf3 {[%clk 0:02:55]}  Nxb5 {[%clk 0:02:58]} 5. Nxb5 {[%clk 0:02:54]}  g6 {[%clk 0:02:46]} 6. d4 {[%clk 0:02:54]}  a6 {[%clk 0:02:46]} 7. Nc3 {[%clk 0:02:53]}  Bg7 {[%clk 0:02:37]} 8. dxc5 {[%clk 0:02:41]}  Qa5 {[%clk 0:02:32]} 9. O-O {[%clk 0:02:37]}  Qxc5 {[%clk 0:02:28]} 10. Be3 {[%clk 0:02:23]}  Qa5 {[%clk 0:02:24]} 11. Nd5 {[%clk 0:02:19]}  Kf8 {[%clk 0:01:55]} 12. c3 {[%clk 0:01:46]}  d6 {[%clk 0:01:50]} 13. a4 {[%clk 0:01:43]}  Qd8 {[%clk 0:01:43]} 14. Bb6 {[%clk 0:01:40]}  Qd7 {[%clk 0:01:42]} 15. Bd4 {[%clk 0:01:37]}  Qc6 {[%clk 0:01:33]} 16. Bxg7+ {[%clk 0:01:30]}  Kxg7 {[%clk 0:01:34]} 17. Qd4+ {[%clk 0:01:30]}  e5 {[%clk 0:01:29]} 18. Qb4 {[%clk 0:01:28]}  a5 {[%clk 0:01:26]} 19. Qb5 {[%clk 0:01:27]}  Nf6 {[%clk 0:01:17]} 20. Nxf6 {[%clk 0:01:26]}  Kxf6 {[%clk 0:01:18]} 21. Rfd1 {[%clk 0:01:26]}  Rd8 {[%clk 0:01:17]} 22. Rd5 {[%clk 0:01:16]}  Be6 {[%clk 0:01:14]} 23. Qxc6 {[%clk 0:01:01]}  bxc6 {[%clk 0:01:15]} 24. Rd4 {[%clk 0:01:00]}  exd4 {[%clk 0:01:15]} 0-1


[Site "https://www.chess.com"]